bitfinex-derivatives/quotes_SOLF0:USTF0_20250624
["timestamp","ask_amount","ask_price","bid_price","bid_amount"]
[1750789428511,6.9395,144.03,143.98,43.1429127]
[1750789429215,6.9395,144.03,143.98,38.72]
[1750789429396,2.3018,144.06,143.99,4.4229127]
[1750789429605,4.4229127,144.04,143.98,38.72]
[1750789429914,4.4229127,144.04,143.97,4.4229127]
[1750789430301,6.9407,144.01,143.98,6.9415]
[1750789430706,4.4229127,144.04,143.96,43.1429127]
[1750789430914,6.9411,144.0,143.97,6.942]
[1750789432411,6.9411,144.0,143.98,6.9416]
[1750789433198,6.9411,144.0,143.97,6.942]
[1750789433406,6.9411,144.0,143.96,43.1429127]
[1750789434112,4.4229127,144.04,143.96,38.72]
[1750789434705,4.4229127,144.04,143.97,6.9422]
[1750789435007,6.9415,143.99,143.97,6.9422]
[1750789435207,4.4229127,144.04,143.96,45.6624]
[1750789436315,10.1860982,144.04,143.96,45.6624]
[1750789436506,4.4229127,144.04,143.96,45.6624]
[1750789436707,4.4229127,144.04,143.97,6.9421]
[1750789437306,4.4229127,144.04,143.98,6.9415]
[1750789437509,5.76724013,144.05,143.96,38.72]
[1750789437510,4.4229127,144.05,143.97,4.4229127]
[1750789437813,9.68567279,144.04,143.98,6.9415]
[1750789438017,4.4229127,144.05,143.98,6.9415]
[1750789438213,6.9406,144.01,143.98,6.9415]
[1750789438717,9.68370964,144.04,143.97,11.3649127]
[1750789438917,6.9411,144.0,143.97,11.3649127]
[1750789439319,6.9411,144.0,143.98,6.9417]
[1750789440219,6.9411,144.0,143.97,6.942]
[1750789440420,6.9412,143.99,143.97,6.942]
[1750789441321,6.941,144.0,143.97,6.942]
[1750789441522,4.4229127,144.03,143.97,6.942]
[1750789442822,4.4229127,144.03,143.98,6.9417]
[1750789443426,4.4229127,144.03,143.99,6.9411]
[1750789443630,9.47140048,144.05,143.97,4.4229127]
[1750789443924,4.4229127,144.05,143.97,4.4229127]
[1750789444119,6.9396,144.03,143.97,4.4229127]
[1750789444312,5.04905183,144.06,143.99,4.4229127]
[1750789444518,43.1429127,144.07,144.0,38.54]
[1750789444721,43.1429127,144.07,144.01,6.94]
[1750789444924,43.1429127,144.07,144.0,38.54]
[1750789445123,48.18840531,144.07,144.0,38.54]
[1750789445324,43.1429127,144.07,144.0,38.54]
[1750789446023,4.4229127,144.05,144.0,38.54]
[1750789446423,6.94,144.02,144.0,45.4806]
[1750789446929,6.9403,144.01,144.0,38.54]
[1750789447528,4.4229127,144.05,144.0,38.54]
[1750789447731,6.94,144.02,144.0,45.4807]
[1750789447928,4.4229127,144.05,144.0,38.54]
[1750789448229,6.9406,144.01,143.99,140.74]
[1750789448417,4.4229127,144.05,143.99,140.74]
[1750789448620,4.4229127,144.05,143.96,42.9429127]
[1750789448821,4.4229127,144.01,143.96,38.52]
[1750789449230,6.9421,143.98,143.95,9.2701]
[1750789450223,6.9421,143.98,143.96,6.9426]
[1750789450432,6.9421,143.98,143.95,2.3272]
[1750789450735,6.9421,143.98,143.95,9.27]
[1750789451035,6.9421,143.98,143.95,2.3272]
[1750789451531,6.9425,143.97,143.95,2.3272]
[1750789451735,4.4229127,144.01,143.95,2.3272]
[1750789451934,6.9422,143.98,143.95,9.2701]
[1750789452633,4.4229127,143.99,143.87,101.42935661]
[1750789452937,4.4229127,143.97,143.9,6.6509127]
[1750789453130,6.9442,143.93,143.91,6.9449]
[1750789453332,4.4229127,143.95,143.9,2.228]
[1750789453533,9.60912653,143.98,143.9,2.228]
[1750789453732,4.4229127,143.96,143.91,6.9449]
[1750789454239,6.9441,143.94,143.91,6.9449]
[1750789455039,6.9429,143.96,143.9,2.228]
[1750789455333,42.9629127,143.99,143.9,2.228]
[1750789455647,4.4229127,143.97,143.91,6.9451]
[1750789456330,6.9441,143.94,143.91,6.9451]
[1750789456527,6.9441,143.94,143.92,6.9446]
[1750789456832,6.9441,143.94,143.89,140.64]
[1750789457233,6.9441,143.94,143.92,6.9446]
[1750789457438,6.9441,143.94,143.89,140.64]
[1750789457737,6.9441,143.94,143.91,6.9448]
[1750789458344,4.4229127,143.97,143.91,6.9448]
[1750789459937,6.9444,143.93,143.91,6.9448]
[1750789460139,4.42160551,143.93,143.85,4.42160551]
[1750789460435,42.96160551,143.95,143.87,4.42160551]
[1750789461235,42.96160551,143.95,143.89,6.946]
[1750789461941,6.945,143.92,143.89,6.946]
[1750789462238,6.945,143.92,143.9,6.9455]
[1750789463240,42.96160551,143.95,143.9,6.9455]
[1750789463241,6.9443,143.93,143.9,6.9455]
[1750789463738,6.9443,143.93,143.91,6.945]
[1750789463939,6.9439,143.94,143.91,6.945]
[1750789466642,6.9444,143.93,143.91,6.945]
[1750789466842,4.42160551,143.97,143.92,6.9446]
[1750789467047,6.9439,143.94,143.89,4.42160551]
[1750789467346,38.54,143.98,143.91,4.42160551]
[1750789467540,38.54,143.98,143.93,6.9438]
[1750789468145,6.9429,143.96,143.93,6.9438]
[1750789469141,6.9424,143.97,143.94,6.9434]
[1750789469340,38.54,143.98,143.94,6.9434]
[1750789469743,6.9425,143.97,143.94,6.9434]
[1750789469948,6.9425,143.97,143.95,6.943]
[1750789470143,6.9425,143.97,143.92,45.37671481]
[1750789470742,6.9419,143.98,143.92,45.37671481]
[1750789470950,6.9419,143.98,143.93,4.8528]
[1750789471252,6.9414,143.99,143.94,4.41831481]
[1750789471451,38.54,144.01,143.94,4.41831481]
[1750789472948,6.9418,143.98,143.94,4.41831481]
[1750789473653,6.9418,143.98,143.95,6.9431]
[1750789473952,6.9422,143.97,143.94,4.41831481]
[1750789474145,6.9422,143.97,143.94,6.9433]
[1750789474546,4.41831481,144.0,143.94,6.9433]
[1750789475347,6.9425,143.97,143.94,6.9433]
[1750789476149,6.9425,143.97,143.95,6.943]
[1750789478558,6.9419,143.98,143.95,6.943]
[1750789479058,6.9423,143.97,143.95,6.943]
[1750789479260,42.95831481,144.01,143.95,6.943]
[1750789480351,6.942,143.98,143.95,6.943]
[1750789480551,42.95831481,144.01,143.95,6.943]
[1750789480859,6.9411,144.0,143.96,4.41831481]
[1750789481262,6.9411,144.0,143.97,6.9419]
[1750789481451,6.9411,144.0,143.96,42.79831481]
[1750789482057,6.9405,144.01,143.96,42.79831481]
[1750789482446,599.72,144.08,143.98,4.41453803]
[1750789482647,4.41453803,144.07,144.0,4.41453803]
[1750789483050,6.9391,144.04,144.01,6.94]
[1750789484157,6.9398,144.02,144.0,4.41453803]
[1750789484363,4.41453803,144.03,143.96,4.41453803]
[1750789484656,4.41453803,144.03,143.95,38.36]
[1750789484957,4.41453803,144.03,143.97,6.942]
[1750789485165,4.41453803,144.01,143.95,38.36]
[1750789485560,4.41453803,144.01,143.95,45.3029]
[1750789486056,6.9422,143.97,143.95,45.3029]
[1750789486561,6.9419,143.98,143.96,6.9426]
[1750789488463,6.9422,143.97,143.95,45.3029]
[1750789491752,6.942,143.98,143.95,45.3029]
[1750789492463,6.942,143.98,143.96,6.9426]
[1750789492665,6.942,143.98,143.95,38.36]
[1750789492864,6.942,143.98,143.95,45.3028]
[1750789493262,4.41453803,144.01,143.95,45.3028]
[1750789494161,6.9411,144.0,143.95,45.3028]
[1750789494359,4.41453803,144.01,143.95,45.3028]
[1750789495068,4.41453803,144.01,143.95,38.36]
[1750789495369,4.41453803,144.02,143.97,6.942]
[1750789496264,4.5299,144.03,143.98,6.9414]
[1750789496461,4.41453803,144.03,143.95,42.77453803]
[1750789497667,6.9408,144.0,143.98,6.9415]
[1750789497869,6.9408,144.0,143.95,42.77453803]
[1750789498464,6.9405,144.01,143.95,42.77453803]
[1750789498667,4.41453803,144.03,143.97,6.9418]
[1750789499262,6.9412,143.99,143.96,6.9424]
[1750789499673,4.41453803,144.02,143.96,6.9424]
[1750789500263,6.9414,143.99,143.95,42.77453803]
[1750789501266,6.9414,143.99,143.97,6.9419]
[1750789502263,6.941,144.0,143.97,6.9419]
[1750789502569,4.41453803,144.02,143.98,6.9415]
[1750789503267,6.9405,144.01,143.99,6.9411]
[1750789503467,4.41453803,144.02,143.96,38.36]
[1750789504574,6.9418,143.98,143.96,45.3024]
[1750789505473,6.9414,143.99,143.97,6.9422]
[1750789506773,6.941,144.0,143.98,6.9416]
[1750789509173,6.9406,144.01,143.94,184.98243803]
[1750789509378,6.9406,144.01,143.96,4.41453803]
[1750789509770,6.94,144.02,143.96,4.41453803]
[1750789509976,2.4255,144.06,143.98,4.41453803]
[1750789510277,6.939,144.04,143.98,42.59453803]
[1750789510479,42.59453803,144.07,144.0,4.41453803]
[1750789510679,9.73007496,144.06,144.0,4.41453803]
[1750789510879,42.59453803,144.07,144.02,6.9395]
[1750789511080,5.07675688,144.06,144.0,4.41453803]
[1750789511280,6.9392,144.04,144.01,6.94]
[1750789511583,5.07640333,144.06,144.01,6.94]
[1750789511880,42.59453803,144.07,144.0,4.41453803]
[1750789512077,6.9391,144.04,144.0,4.41453803]
[1750789512678,6.9391,144.04,144.02,6.9397]
[1750789513877,6.9386,144.05,144.02,6.9397]
[1750789514079,38.18,144.07,144.01,4.41390537]
[1750789514582,6.9387,144.05,144.02,6.9397]
[1750789514781,6.9387,144.05,144.01,4.41390537]
[1750789516087,6.9381,144.06,144.03,6.939]
[1750789516289,38.18,144.07,144.03,6.939]
[1750789516481,6.9384,144.05,144.02,6.9394]
[1750789516684,38.18,144.07,144.01,4.41390537]
[1750789517079,6.9382,144.06,144.03,6.9391]
[1750789517289,6.9382,144.06,144.02,38.16]
[1750789517693,6.9382,144.06,144.03,6.939]
[1750789517893,9.07753738,144.07,144.02,38.16]
[1750789518092,5.08773006,144.06,144.02,38.16]
[1750789518291,4.41390537,144.07,144.02,38.16]
[1750789518495,6.9393,144.03,144.0,6.9405]
[1750789518693,4.41390537,144.07,143.99,42.8725]
[1750789518897,4.41390537,144.05,143.99,42.8725]
[1750789519086,4.41390537,144.05,143.99,4.7125]
[1750789519799,6.9402,144.02,143.99,11.6534]
[1750789519990,4.41390537,144.05,143.99,11.6534]
[1750789520182,4.41390537,144.05,143.99,9.3005]
[1750789520682,6.9405,144.01,143.99,9.3005]
[1750789520887,4.41390537,144.05,143.99,2.3596]
[1750789521088,4.41390537,144.05,143.98,38.16]
[1750789521694,4.41390537,144.03,143.98,38.16]
[1750789522186,6.941,144.0,143.98,38.16]
[1750789522790,6.9412,143.99,143.98,38.16]
[1750789522985,4.41390537,144.03,143.98,38.16]
[1750789523295,4.41390537,144.03,143.98,45.1016]
[1750789524002,6.941,144.0,143.98,38.16]
[1750789524196,4.41390537,144.03,143.98,38.16]
[1750789524497,6.9412,143.99,143.96,44.90600537]
[1750789524796,4.41390537,144.03,143.96,44.90600537]
[1750789525392,6.9415,143.99,143.97,6.942]
[1750789526200,6.9415,143.99,143.96,51.84840537]
[1750789527391,4.41390537,144.06,143.98,4.41390537]
[1750789527602,5.07579129,144.05,143.98,4.41390537]
[1750789527798,4.41390537,144.06,143.98,4.41390537]
[1750789527999,5.07546544,144.05,143.98,4.41390537]
[1750789528200,4.41390537,144.06,144.0,6.9405]
[1750789528598,4.41390537,144.06,143.96,40.4921]
[1750789528800,6.9401,144.02,143.97,4.41390537]
[1750789529297,6.9401,144.02,143.99,6.9409]
[1750789529498,6.9401,144.02,143.97,4.41390537]
[1750789529905,6.9401,144.02,144.0,6.9406]
[1750789530094,4.41390537,144.06,143.99,4.41390537]
[1750789530299,4.41390537,144.06,144.01,6.9399]
[1750789531008,6.9393,144.03,144.01,6.9399]
[1750789531306,38.16,144.07,144.02,6.9398]
[1750789531506,5.06901163,144.06,144.02,6.9398]
[1750789531804,42.57390537,144.07,144.02,6.9398]
[1750789532000,5.0689605,144.06,144.02,6.9398]
[1750789532202,6.9388,144.05,144.02,6.9398]
[1750789532704,42.57390537,144.07,144.0,40.6021]
[1750789532898,42.57390537,144.07,144.0,42.8528]
[1750789533102,5.06838402,144.08,144.04,6.9384]
[1750789533303,4.65984907,144.09,144.02,2.4268]
[1750789533503,6.9381,144.06,144.02,2.4268]
[1750789533709,6.9381,144.06,144.03,6.939]
[1750789534701,6.9381,144.06,144.04,6.9387]
[1750789536204,6.9381,144.06,144.03,6.9391]
[1750789536407,5.08572561,144.09,144.03,6.9391]
[1750789536607,44.77810537,144.1,144.03,6.9391]
[1750789536812,6.9383,144.05,144.03,6.9391]
[1750789537010,44.77810537,144.1,144.03,6.9391]
[1750789537212,9.73643453,144.09,144.03,6.9391]
[1750789537411,4.65061439,144.09,144.03,6.9391]
[1750789537601,6.9385,144.05,144.02,9.3663]
[1750789537801,9.50034981,144.08,144.0,42.8528]
[1750789538001,4.41390537,144.08,144.0,42.8528]
[1750789538308,4.41390537,144.08,143.95,4.41390537]
[1750789538309,4.41390537,144.04,143.95,4.41390537]
[1750789538507,4.41390537,144.02,143.95,37.96]
[1750789539205,6.9415,143.99,143.96,6.9424]
[1750789540012,6.9404,144.01,143.97,4.41390537]
[1750789540211,37.96,144.04,143.97,4.41390537]
[1750789540412,4.65739558,144.06,143.99,4.41390537]
[1750789540612,6.9391,144.04,144.01,6.9403]
[1750789542918,6.9391,144.04,144.02,6.9398]
[1750789543119,42.37390537,144.07,144.0,2.3931]
[1750789543516,42.37390537,144.07,144.02,6.9397]
[1750789543817,6.9386,144.05,144.02,6.9397]
[1750789544114,42.37390537,144.07,144.02,6.9397]
[1750789545418,6.9392,144.04,144.01,6.9399]
[1750789546822,6.9392,144.04,144.0,2.3931]
[1750789547119,6.9392,144.04,144.01,6.94]
[1750789548118,6.9392,144.04,144.02,6.9398]
[1750789548927,6.9393,144.03,144.01,6.94]
[1750789549112,4.41390537,144.05,143.99,42.37390537]
[1750789549428,4.41390537,144.05,143.99,37.96]
[1750789550225,6.9402,144.02,143.99,44.901]
[1750789551612,5.09421349,144.04,143.99,37.96]
[1750789551811,4.41390537,144.05,143.97,4.41390537]
[1750789552012,5.09470481,144.04,143.94,4.6864]
[1750789552208,5.09445778,144.03,143.95,42.37390537]
[1750789552409,4.41390537,144.03,143.95,42.37390537]
[1750789553114,6.9408,144.0,143.97,6.9419]
[1750789555423,6.9408,144.0,143.98,6.9417]
[1750789555722,19.88658907,144.05,143.97,4.41390537]
[1750789555923,4.41390537,144.05,143.97,4.41390537]
[1750789556223,6.9401,144.02,143.99,6.9409]
[1750789556928,4.41559447,144.04,143.95,37.96]
[1750789557122,4.41559447,144.02,143.95,37.96]
[1750789557624,4.41559447,144.02,143.96,6.9426]
[1750789557625,6.9418,143.98,143.96,6.9426]
[1750789558430,6.9415,143.99,143.96,6.9426]
[1750789559424,6.9417,143.98,143.96,6.9426]
[1750789561723,4.41559447,144.01,143.97,6.9421]
[1750789562026,4.41559447,144.01,143.95,37.96]
[1750789562326,6.9412,143.99,143.96,6.9426]
[1750789562519,4.41559447,144.01,143.95,37.96]
[1750789562721,6.941,144.0,143.95,37.96]
[1750789562919,6.941,144.0,143.97,6.9418]
[1750789563120,42.37559447,144.03,143.95,42.37559447]
[1750789563319,9.05509397,144.05,144.0,6.9404]
[1750789563523,4.41559447,144.05,143.97,4.41559447]
[1750789563919,6.9394,144.03,144.01,6.94]
[1750789564119,4.41559447,144.05,143.99,37.96]
[1750789564431,4.41559447,144.05,143.99,44.901]
[1750789564627,4.41559447,144.05,143.99,37.96]
[1750789565126,6.939,144.04,144.01,6.94]
[1750789565525,4.41559447,144.05,144.01,6.94]
[1750789567423,6.9394,144.03,144.01,6.94]
[1750789568016,6.9391,144.04,144.02,6.9398]
[1750789568225,4.41559447,144.05,143.99,42.6564]
[1750789568625,6.9393,144.03,143.99,42.6564]
[1750789569433,6.9393,144.03,144.01,6.9402]
[1750789570631,42.37421963,144.06,144.01,6.9402]
[1750789571133,42.37421963,144.06,144.02,6.9397]
[1750789572034,6.939,144.04,144.01,6.94]
[1750789572429,6.939,144.04,143.99,42.6564]
[1750789573034,6.9385,144.05,144.02,6.9394]
[1750789573828,6.938,144.06,144.0,4.41421963]
[1750789574224,6.938,144.06,144.03,6.9388]
[1750789574427,6.938,144.06,144.0,4.41421963]
[1750789574827,6.938,144.06,144.03,6.9389]
[1750789575229,5.09918638,144.08,144.03,6.9389]
[1750789575430,4.41421963,144.07,144.0,4.41421963]
[1750789575934,6.9386,144.05,144.02,6.9393]
[1750789576135,6.9386,144.05,144.0,4.41421963]
[1750789576328,6.9381,144.06,144.0,4.41421963]
[1750789576723,6.9381,144.06,144.03,6.939]
[1750789578434,6.9381,144.06,144.04,6.9387]
[1750789578840,6.9381,144.06,144.0,4.41421963]
[1750789579035,6.9381,144.06,144.03,6.939]
[1750789579426,6.9379,144.06,144.0,4.41421963]
[1750789579631,6.9379,144.06,143.99,42.6564]
[1750789579632,37.76,144.12,144.03,4.41168482]
[1750789579837,9.78910182,144.11,144.04,37.76]
[1750789580036,6.9373,144.08,144.05,6.9381]
[1750789580433,6.9383,144.05,144.04,37.76]
[1750789580633,9.78873028,144.09,144.04,37.76]
[1750789580840,4.41168482,144.1,144.04,37.76]
[1750789581140,9.79070311,144.09,144.03,6.9391]
[1750789581340,4.41168482,144.1,144.01,42.17168482]
[1750789581534,6.9381,144.06,144.01,42.17168482]
[1750789581835,6.9381,144.06,144.03,6.9388]
[1750789582030,6.9386,144.05,144.01,37.76]
[1750789582337,4.68564195,144.09,144.02,4.41168482]
[1750789582338,4.41168482,144.09,144.02,4.41168482]
[1750789582529,6.9376,144.07,144.02,4.41168482]
[1750789582731,4.41168482,144.09,144.05,6.9381]
[1750789582938,9.10382422,144.11,144.04,4.41168482]
[1750789583240,4.41168482,144.11,144.06,6.9376]
[1750789583434,4.41168482,144.11,144.04,4.41168482]
[1750789583640,122.69515356,144.14,144.06,4.41168482]
[1750789583939,5.10432436,144.13,144.09,6.9362]
[1750789584140,122.69515356,144.14,144.09,6.9362]
[1750789584329,6.9352,144.12,144.09,6.9362]
[1750789584533,122.69515356,144.14,144.08,6.9367]
[1750789584730,5.11046962,144.13,144.08,6.9367]
[1750789584933,6.9358,144.11,144.08,6.9367]
[1750789585739,6.9358,144.11,144.09,6.9362]
[1750789586140,6.936,144.1,144.07,8.93762864]
[1750789586635,6.936,144.1,144.07,4.5284]
[1750789587031,6.9357,144.11,144.07,4.5284]
[1750789587233,6.9357,144.11,144.08,6.9364]
[1750789587942,122.69515356,144.14,144.09,6.9363]
[1750789588143,6.66192864,144.15,144.09,6.9363]
[1750789588442,6.9352,144.12,144.09,6.9362]
[1750789589043,6.9352,144.12,144.1,6.9359]
[1750789589342,6.9347,144.13,144.1,6.9359]
[1750789589932,6.9344,144.14,144.09,37.76]
[1750789590131,37.76,144.16,144.09,37.76]
[1750789590132,37.76,144.16,144.1,4.40922864]
[1750789590336,4.40922864,144.18,144.11,6.9352]
[1750789590533,9.50833294,144.18,144.11,6.9352]
[1750789590744,4.40922864,144.16,144.09,37.76]
[1750789590946,6.9342,144.14,144.11,6.9352]
[1750789591742,6.9345,144.13,144.11,6.9352]
[1750789592547,6.9345,144.13,144.09,37.76]
[1750789592548,6.9342,144.14,144.09,37.76]
[1750789592942,4.40922864,144.17,144.1,4.40922864]
[1750789593845,6.933,144.16,144.14,6.934]
[1750789594148,37.76,144.19,144.13,37.74]
[1750789594350,6.9319,144.19,144.16,6.9328]
[1750789595148,37.74,144.22,144.14,6.70832864]
[1750789595649,6.9314,144.2,144.17,6.9321]
[1750789595851,4.40922864,144.23,144.17,6.9321]
[1750789596352,4.40922864,144.23,144.18,6.9319]
[1750789596746,4.40922864,144.23,144.17,37.56]
[1750789596943,4.40922864,144.23,144.17,44.4923]
[1750789597548,4.40922864,144.23,144.17,37.56]
[1750789598450,4.40922864,144.23,144.17,44.4925]
[1750789599347,6.9316,144.2,144.17,44.4925]
[1750789599855,4.40922864,144.23,144.17,37.56]
[1750789600558,6.9309,144.21,144.17,37.56]
[1750789600856,4.40922864,144.23,144.17,37.56]
[1750789601057,6.9321,144.18,144.17,37.56]
[1750789601449,4.40922864,144.23,144.17,37.56]
[1750789601848,6.9317,144.19,144.17,44.4925]
[1750789602952,4.40922864,144.23,144.18,6.932]
[1750789602953,6.9314,144.2,144.18,6.932]
[1750789603647,6.9309,144.21,144.17,37.56]
[1750789603951,41.96922864,144.25,144.18,4.40922864]
[1750789604152,6.9297,144.23,144.2,6.9307]
[1750789604348,37.56,144.25,144.18,6.68612864]
[1750789604763,6.9297,144.24,144.18,6.68612864]
[1750789605148,6.9297,144.24,144.21,6.9304]
[1750789605356,6.9289,144.25,144.21,37.54]
[1750789606260,6.9289,144.25,144.22,6.9297]
[1750789606465,37.54,144.28,144.21,37.54]
[1750789606967,6.9295,144.24,144.21,37.54]
[1750789607349,6.9299,144.23,144.21,44.4704]
[1750789607554,4.40922864,144.27,144.21,37.54]
[1750789607751,4.40922864,144.25,144.21,37.54]
[1750789607956,4.40922864,144.25,144.19,2.2176]
[1750789607957,6.9304,144.22,144.2,6.9311]
[1750789608964,6.9307,144.21,144.19,9.1489]
[1750789609265,4.40922864,144.25,144.18,39.8169]
[1750789609466,6.9312,144.2,144.18,46.7487]
[1750789610660,6.9316,144.19,144.18,2.2769]
[1750789610966,4.40922864,144.25,144.18,2.2769]
[1750789611365,6.9311,144.21,144.18,9.2087]
[1750789612267,6.9311,144.2,144.18,9.2087]
[1750789612659,4.40922864,144.25,144.18,9.2087]
[1750789612859,4.40922864,144.25,144.18,2.2769]
[1750789613056,4.40922864,144.23,144.18,2.2769]
[1750789613257,4.4034822,144.26,144.19,6.9314]
[1750789613460,4.4034822,144.26,144.18,6.6803822]
[1750789613771,6.93,144.23,144.2,6.9307]
[1750789614870,6.93,144.23,144.21,6.9306]
[1750789615074,6.9294,144.24,144.21,6.9306]
[1750789615967,6.9294,144.24,144.22,6.9301]
[1750789616670,37.52,144.31,144.21,37.52]
[1750789616874,4.4034822,144.3,144.21,37.52]
[1750789617078,6.9275,144.28,144.25,6.9283]
[1750789618074,6.9278,144.27,144.25,6.9283]
[1750789620175,6.9278,144.27,144.24,6.9289]
[1750789620376,6.9278,144.27,144.18,2.2769]
[1750789620377,4.40048293,144.25,144.18,2.2769]
[1750789620975,6.9296,144.24,144.18,2.2769]
[1750789621479,6.9297,144.23,144.21,6.9304]
[1750789621979,6.9295,144.24,144.21,6.9304]
[1750789622177,2.4336,144.26,144.22,6.93]
[1750789622376,41.92213548,144.27,144.22,6.93]
[1750789623077,51.68117623,144.27,144.22,6.93]
[1750789624377,51.68117623,144.27,144.17,37.52]
[1750789624378,4.40213548,144.23,144.17,37.52]
[1750789624880,6.9309,144.21,144.17,37.52]
[1750789625474,6.9312,144.2,144.17,37.52]
[1750789625678,6.9312,144.2,144.14,4.7557]
[1750789625679,4.40213548,144.21,144.14,2.3459]
[1750789625878,37.34,144.23,144.14,2.3459]
[1750789625879,4.40213548,144.19,144.15,6.9331]
[1750789626185,4.40213548,144.19,144.14,2.3459]
[1750789626479,6.9326,144.18,144.15,6.9332]
[1750789626684,4.40213548,144.19,144.14,2.3459]
[1750789626880,4.40213548,144.19,144.13,37.34]
[1750789627274,4.40213548,144.19,144.14,6.9338]
[1750789627477,4.40213548,144.19,144.13,37.34]
[1750789628176,41.76213548,144.19,144.13,37.34]
[1750789628572,41.76213548,144.19,144.13,44.2742]
[1750789629179,41.76213548,144.19,144.14,6.9339]
[1750789630178,41.76213548,144.19,144.13,37.34]
[1750789630383,4.40213548,144.17,144.1,638.2439]
[1750789630590,4.40213548,144.17,144.1,39.6039]
[1750789630799,6.9343,144.14,144.11,6.9354]
[1750789631084,4.40213548,144.17,144.11,6.9354]
[1750789631779,6.9347,144.13,144.1,46.5396]
[1750789632478,6.935,144.12,144.1,46.5396]
[1750789632680,4.40213548,144.13,144.07,2.357]
[1750789632985,6.9353,144.12,144.07,2.357]
[1750789633187,4.40985994,144.14,144.09,6.9361]
[1750789634199,4.40985994,144.12,144.06,37.36]
[1750789634880,4.40985994,144.12,144.07,6.9372]
[1750789635188,4.40985994,144.1,144.05,4.4203]
[1750789635388,37.36,144.11,144.05,4.4203]
[1750789635587,6.936,144.1,144.07,6.937]
[1750789636178,41.76985994,144.12,144.06,6.9376]
[1750789636179,6.9364,144.09,144.06,6.9376]
[1750789636381,4.40985994,144.1,144.06,6.9376]
[1750789636590,6.9369,144.08,144.05,4.4203]
[1750789636892,4.40985994,144.1,144.05,11.3584]
[1750789637382,6.9376,144.07,144.05,4.4203]
[1750789637793,6.9376,144.07,144.04,6.9385]
[1750789638184,6.9381,144.06,144.03,44.2991]
[1750789638498,4.40985994,144.08,144.03,37.36]
[1750789638884,6.9376,144.07,144.04,6.9386]
[1750789639085,6.9376,144.07,144.03,37.36]
[1750789640089,6.9376,144.07,144.04,6.9385]
[1750789641496,6.9379,144.06,144.04,6.9385]
[1750789641698,6.9379,144.06,144.03,44.2991]
[1750789641995,6.9388,144.05,144.01,2.299]
[1750789642193,41.78985994,144.08,144.01,2.299]
[1750789642501,37.38,144.08,144.01,2.299]
[1750789643097,6.9376,144.07,144.05,6.9383]
[1750789643291,6.9376,144.07,144.01,2.299]
[1750789643693,6.9376,144.07,144.04,6.9386]
[1750789645298,6.9379,144.06,144.04,6.9386]
[1750789645901,4.40985994,144.07,144.01,2.299]
[1750789646401,6.9386,144.05,144.02,6.9394]
[1750789647500,6.9386,144.05,144.03,6.9392]
[1750789647903,37.38,144.08,144.01,2.299]
[1750789648094,37.38,144.08,144.04,6.9386]
[1750789648496,6.9376,144.07,144.04,6.9386]
[1750789648804,6.9376,144.07,144.05,6.9383]
[1750789649705,6.9376,144.07,144.04,6.9386]
[1750789650306,6.9376,144.07,144.05,6.9383]
[1750789650906,41.78985994,144.11,144.04,4.40985994]
[1750789651608,6.9362,144.1,144.04,41.78985994]
[1750789652804,6.9362,144.1,144.07,6.937]
[1750789653606,44.3156,144.11,144.06,4.40985994]
[1750789653803,6.9356,144.11,144.06,4.40985994]
[1750789653999,6.9356,144.11,144.07,2.2679]
[1750789654399,6.935,144.12,144.07,2.2679]
[1750789654699,6.935,144.12,144.08,4.40985994]
[1750789655304,44.10795994,144.18,144.1,4.40985994]
[1750789655509,41.78985994,144.18,144.1,4.40985994]
[1750789655695,6.9333,144.16,144.1,4.40985994]